bitfinex-derivatives/quotes_SOLF0:USTF0_20250216
["timestamp","ask_amount","ask_price","bid_price","bid_amount"]
[1739739507714,5.3114,188.25,188.2,5.3127]
[1739739508014,5.3114,188.25,188.2,13.22039022]
[1739739508914,0.04057839,188.24,188.21,0.03395875]
[1739739509916,0.04057839,188.24,188.21,5.34625875]
[1739739510214,0.04057839,188.24,188.22,7.90769022]
[1739739511419,0.04057839,188.24,188.21,0.03395875]
[1739739512323,0.04057839,188.24,188.21,5.34635875]
[1739739512821,0.04057839,188.24,188.21,0.03395875]
[1739739514124,0.04057839,188.24,188.21,5.34635875]
[1739739514825,0.04057839,188.24,188.21,0.03395875]
[1739739515826,0.04057839,188.24,188.21,5.34635875]
[1739739516529,0.04057839,188.24,188.23,13.21949022]
[1739739516826,7.90769022,188.34,188.23,7.90769022]
[1739739517032,13.21649022,188.34,188.27,7.90769022]
[1739739517228,7.90769022,188.34,188.27,7.90769022]
[1739739517927,0.03482915,188.32,188.29,0.03844554]
[1739739519129,0.03482915,188.32,188.29,7.94613576]
[1739739520221,0.03482915,188.32,188.3,5.3097]
[1739739521128,0.03482915,188.32,188.31,5.3096]
[1739739521329,0.03482915,188.32,188.31,13.21729022]
[1739739526733,0.03482915,188.32,188.29,7.94613576]
[1739739529333,0.03482915,188.32,188.31,7.90769022]
[1739739529634,0.03482915,188.32,188.29,7.94613576]
[1739739530333,0.03482915,188.32,188.3,5.3099]
[1739739530533,0.03482915,188.32,188.31,7.90769022]
[1739739534861,0.03482915,188.32,188.31,13.21729022]
[1739739535840,0.03482915,188.32,188.31,7.90769022]
[1739739536339,0.03482915,188.32,188.29,7.94613576]
[1739739536539,0.03482915,188.32,188.29,13.25623576]
[1739739536743,0.03482915,188.32,188.29,7.94613576]
[1739739537140,0.03482915,188.32,188.29,13.25623576]
[1739739537341,0.03482915,188.32,188.29,7.94613576]
[1739739537539,0.03482915,188.32,188.29,0.03844554]
[1739739539044,0.03482915,188.32,188.29,7.94613576]
[1739739539948,0.03482915,188.32,188.29,13.25623576]
[1739739540261,0.03482915,188.32,188.29,7.94613576]
[1739739540851,0.03482915,188.32,188.29,13.25603576]
[1739739541052,0.03482915,188.32,188.31,7.90769022]
[1739739543752,0.03482915,188.32,188.29,7.94613576]
[1739739544650,0.03482915,188.32,188.29,0.03844554]
[1739739545558,5.34422915,188.32,188.29,0.03844554]
[1739739547251,0.03482915,188.32,188.29,0.03844554]
[1739739548959,5.34412915,188.32,188.29,0.03844554]
[1739739549160,0.03482915,188.32,188.29,5.34854554]
[1739739549361,0.03482915,188.32,188.29,7.94613576]
[1739739549559,0.03482915,188.32,188.31,7.90769022]
[1739739550269,0.03482915,188.32,188.31,13.21729022]
[1739739557263,0.03482915,188.32,188.31,7.90769022]
[1739739558661,0.03482915,188.32,188.31,13.21729022]
[1739739558966,0.03482915,188.32,188.31,7.90769022]
[1739739563470,0.03482915,188.32,188.31,13.21729022]
[1739739565075,0.03482915,188.32,188.31,7.90769022]
[1739739566672,0.03482915,188.32,188.31,13.21729022]
[1739739570978,0.03482915,188.32,188.31,7.90769022]
[1739739573476,0.03482915,188.32,188.31,13.21729022]
[1739739574379,0.03482915,188.32,188.31,7.90769022]
[1739739575979,0.03482915,188.32,188.31,13.21729022]
[1739739588483,0.03482915,188.32,188.31,7.90769022]
[1739739589281,0.03482915,188.32,188.31,13.21729022]
[1739739592593,0.03482915,188.32,188.31,7.90769022]
[1739739592890,0.03482915,188.32,188.29,7.94613576]
[1739739593491,0.03482915,188.32,188.29,13.25623576]
[1739739594192,0.03482915,188.32,188.29,7.94613576]
[1739739596392,0.03482915,188.32,188.29,13.25623576]
[1739739597292,0.03482915,188.32,188.29,0.03844554]
[1739739598189,5.3096,188.31,188.29,0.03844554]
[1739739600389,0.03482915,188.32,188.29,0.03844554]
[1739739600696,5.3099,188.3,188.29,0.03844554]
[1739739602789,1.65032915,188.32,188.29,0.03844554]
[1739739602994,5.34442915,188.32,188.29,7.94613576]
[1739739603195,0.03482915,188.32,188.29,7.94613576]
[1739739603397,0.03482915,188.32,188.31,7.90769022]
[1739739603592,2.915e-05,188.32,188.31,13.21729022]
[1739739603794,3.1169,188.4,188.31,7.90769022]
[1739739603993,3.1169,188.4,188.35,7.90769022]
[1739739604193,3.1169,188.4,188.37,7.90769022]
[1739739604793,0.03408569,188.4,188.39,7.90769022]
[1739739609703,0.03408569,188.4,188.39,13.21499022]
[1739739609898,1.6126,188.51,188.39,7.90769022]
[1739739610099,1.6126,188.51,188.45,7.90769022]
[1739739610303,5.3046,188.49,188.45,7.90769022]
[1739739610505,1.6126,188.51,188.45,7.90769022]
[1739739610705,1.6126,188.51,188.47,7.90769022]
[1739739610706,6.9167,188.51,188.47,7.90769022]
[1739739610999,5.3041,188.51,188.47,7.90769022]
[1739739611208,5.33856844,188.51,188.47,7.94695747]
[1739739611504,0.03446844,188.51,188.47,7.94695747]
[1739739612003,5.3045,188.5,188.47,7.94695747]
[1739739612303,0.03446844,188.51,188.47,7.94695747]
[1739739612504,5.3046,188.49,188.47,7.94695747]
[1739739612804,0.03446844,188.51,188.47,7.94695747]
[1739739612999,5.33866844,188.51,188.47,7.94695747]
[1739739613195,0.03446844,188.51,188.47,7.94695747]
[1739739614708,0.03446844,188.51,188.49,7.90769022]
[1739739616509,0.03446844,188.51,188.47,7.94695747]
[1739739617412,5.3045,188.5,188.47,7.94695747]
[1739739618517,5.3047,188.49,188.47,7.94695747]
[1739739618815,0.03446844,188.51,188.47,0.03926725]
[1739739618816,7.90769022,188.5,188.47,0.03926725]
[1739739619114,5.3048,188.48,188.47,0.03926725]
[1739739619817,0.03446844,188.51,188.47,7.94695747]
[1739739620114,0.03446844,188.51,188.49,7.90769022]
[1739739625116,0.03446844,188.51,188.5,5.3042]
[1739739625518,5.3019,188.59,188.49,7.90769022]
[1739739625815,5.3019,188.59,188.55,7.90769022]
[1739739626016,7.90769022,188.6,188.53,7.90769022]
[1739739626521,7.90769022,188.58,188.51,7.90769022]
[1739739626710,7.90769022,188.56,188.55,0.04025336]
[1739739626912,7.90769022,188.56,188.49,13.21209022]
[1739739627116,5.3029,188.55,188.54,0.03772728]
[1739739628922,5.3025,188.57,188.54,0.03772728]
[1739739629222,7.94703748,188.58,188.54,0.03772728]
[1739739629925,5.3028,188.55,188.54,0.03772728]
[1739739640527,5.3028,188.55,188.54,2.728e-05]
[1739739641931,6.918,188.55,188.54,2.728e-05]
[1739739642721,5.3028,188.55,188.54,2.728e-05]
[1739739643226,5.3026,188.56,188.54,2.728e-05]
[1739739643531,7.94703748,188.58,188.54,2.728e-05]
[1739739643739,5.3028,188.55,188.54,2.728e-05]
[1739739660333,0.03934726,188.58,188.54,2.728e-05]
[1739739660940,5.34154726,188.58,188.54,2.728e-05]
[1739739661735,0.03934726,188.58,188.54,2.728e-05]
[1739739662135,7.94703748,188.58,188.54,2.728e-05]
[1739739662434,5.3028,188.55,188.54,2.728e-05]
[1739739666341,5.3028,188.55,188.43,7.90769022]
[1739739666342,1.5965,188.55,188.43,7.90769022]
[1739739666541,7.90769022,188.5,188.43,7.90769022]
[1739739667545,0.04006783,188.48,188.45,0.0387172]
[1739739667743,5.3052,188.47,188.45,0.0387172]
[1739739667944,0.04006783,188.48,188.45,0.0387172]
[1739739670145,5.3051,188.47,188.45,0.0387172]
[1739739672047,0.04006783,188.48,188.45,0.0387172]
[1739739672937,5.34486783,188.48,188.45,0.0387172]
[1739739673442,0.04006783,188.48,188.45,0.0387172]
[1739739675241,0.04006783,188.48,188.45,5.3441172]
[1739739675746,0.04006783,188.48,188.45,0.0387172]
[1739739676546,5.3053,188.46,188.45,0.0387172]
[1739739677144,13.21299022,188.46,188.45,0.0387172]
[1739739678047,13.21299022,188.46,188.45,1.72e-05]
[1739739679246,7.90769022,188.46,188.37,7.36893195]
[1739739679447,3.2637,188.47,188.37,7.36893195]
[1739739679448,7.90769022,188.4,188.37,7.36893195]
[1739739679647,7.90769022,188.4,188.34,1.6904]
[1739739679852,7.90769022,188.4,188.33,38.74425109]
[1739739679853,7.90769022,188.4,188.33,29.29076087]
[1739739680155,7.90769022,188.35,188.33,29.29076087]
[1739739680353,7.90769022,188.35,188.33,15.51566087]
[1739739680552,12.34078388,188.34,188.32,33.93002147]
[1739739680850,12.34078388,188.34,188.32,25.71822147]
[1739739681051,5.309,188.33,188.32,25.71822147]
[1739739681357,5.309,188.33,188.32,2.147e-05]
[1739739682050,194.0,188.35,188.32,2.147e-05]
[1739739682858,5.3089,188.34,188.32,2.147e-05]
[1739739683464,5.309,188.33,188.32,2.147e-05]
[1739739683664,17.64978388,188.33,188.32,2.147e-05]
[1739739685468,12.34078388,188.33,188.32,2.147e-05]
[1739739685768,194.0,188.35,188.32,2.147e-05]
[1739739686468,199.3085,188.35,188.32,2.147e-05]
[1739739690168,5.3088,188.34,188.32,2.147e-05]
[1739739690662,5.309,188.33,188.32,2.147e-05]
[1739739691663,17.65078388,188.3,188.23,5.3116]
[1739739692069,12.34078388,188.3,188.23,5.3116]
[1739739692270,5.3105,188.28,188.22,5.3121]
[1739739692665,5.3105,188.28,188.12,10.6295]
[1739739692666,12.37611736,188.27,188.23,0.03652461]
[1739739692862,12.34078388,188.27,188.13,12.34078388]
[1739739693072,12.38055359,188.27,188.23,0.03443363]
[1739739694768,5.3112,188.26,188.23,0.03443363]
[1739739694975,0.03976971,188.27,188.23,0.03443363]
[1739739695475,194.0,188.35,188.23,0.03443363]
[1739739695872,194.0,188.35,188.22,12.34078388]
[1739739696077,12.34078388,188.33,188.19,12.34078388]
[1739739696466,0.03584215,188.28,188.24,0.03419768]
[1739739696874,0.03584215,188.28,188.26,5.3108]
[1739739697074,0.03584215,188.28,188.24,0.03419768]
[1739739697570,194.0,188.35,188.24,0.03419768]
[1739739698166,5.3088,188.34,188.28,5.3102]
[1739739698373,194.0,188.35,188.28,5.3102]
[1739739698573,0.04053492,188.33,188.29,0.0355924]
[1739739698775,0.04053492,188.33,188.29,5.3454924]
[1739739699275,0.04053492,188.33,188.29,0.0355924]
[1739739699475,0.04053492,188.33,188.3,5.3098]
[1739739700078,0.04053492,188.33,188.29,5.3456924]
[1739739701568,0.04053492,188.33,188.3,5.3098]
[1739739702878,0.04053492,188.33,188.29,0.0355924]
[1739739703079,0.04053492,188.33,188.31,5.3095]
[1739739703780,0.04053492,188.33,188.29,5.3454924]
[1739739704375,0.04053492,188.33,188.29,0.0355924]
[1739739704581,0.04053492,188.33,188.3,5.3098]
[1739739706883,206.34078388,188.42,188.29,0.0355924]
[1739739707077,206.34078388,188.42,188.28,12.34078388]
[1739739707479,206.34078388,188.42,188.33,5.3088]
[1739739707782,206.34078388,188.42,188.28,12.34078388]
[1739739708082,5.3077,188.38,188.36,0.03460772]
[1739739708882,5.34570154,188.39,188.36,0.03460772]
[1739739709485,0.03830154,188.39,188.36,0.03460772]
[1739739710087,5.34570154,188.39,188.36,0.03460772]
[1739739710888,5.3076,188.38,188.36,0.03460772]
[1739739711386,12.37908542,188.39,188.36,0.03460772]
[1739739711988,5.3079,188.37,188.36,0.03460772]
[1739739714182,5.3079,188.37,188.36,7.72e-06]
[1739739715887,5.3096,188.31,188.27,1.685]
[1739739716390,12.34078388,188.35,188.27,1.685]
[1739739716591,12.34078388,188.32,188.19,12.34078388]
[1739739716886,12.34078388,188.32,188.2,1.5519]
[1739739717081,0.03720724,188.27,188.24,0.03528524]
[1739739720293,5.34790724,188.27,188.24,0.03528524]
[1739739721086,0.03720724,188.27,188.24,0.03528524]
[1739739721392,12.34078388,188.26,188.24,0.03528524]
[1739739721594,5.3113,188.25,188.24,0.03528524]
[1739739722995,12.34078388,188.26,188.11,4.9442]
[1739739723295,12.34078388,188.22,188.11,4.9442]
[1739739723594,17.65318388,188.22,188.11,4.9442]
[1739739724199,0.03488562,188.18,188.17,5.3135]
[1739739724889,12.34078388,188.25,188.19,5.3128]
[1739739725692,5.3116,188.24,188.13,12.34078388]
[1739739725986,0.03541289,188.2,188.17,0.03893317]
[1739739728688,5.3132,188.18,188.17,0.03893317]
[1739739730998,5.313,188.19,188.17,0.03893317]
[1739739731990,0.03541289,188.2,188.17,0.03893317]
[1739739732600,0.03541289,188.2,188.18,5.3132]
[1739739733596,0.03541289,188.2,188.19,5.313]
[1739739734892,194.0,188.25,188.17,0.03893317]
[1739739735092,5.3109,188.27,188.21,5.3122]
[1739739735702,5.3109,188.27,188.16,12.34078388]
[1739739735902,5.3109,188.27,188.22,5.3121]
[1739739736104,0.03506875,188.23,188.22,5.3121]
[1739739736403,17.65118388,188.28,188.22,5.3121]
[1739739736599,0.03630798,188.24,188.21,5.3123]
[1739739736803,0.03630798,188.24,188.2,0.04051857]
[1739739737505,12.34078388,188.31,188.2,3.23071857]
[1739739737705,5.3099,188.3,188.24,5.3115]
[1739739738506,5.3102,188.29,188.23,5.3118]
[1739739738698,5.34977771,188.29,188.25,0.03980713]
[1739739740597,5.3105,188.28,188.25,0.03980713]
[1739739740899,12.34078388,188.28,188.25,0.03980713]
[1739739741300,5.311,188.26,188.25,0.03980713]
[1739739741904,26.25276776,188.28,188.13,12.34078388]
[1739739742208,12.34078388,188.21,188.11,3.1433]
[1739739743007,0.04055239,188.18,188.14,0.03870284]
[1739739744210,0.04055239,188.18,188.15,5.3138]
[1739739744600,0.04055239,188.18,188.14,0.03870284]
[1739739744904,0.04055239,188.18,188.14,5.35300284]
[1739739745106,0.04055239,188.18,188.14,0.03870284]
[1739739745909,12.38133627,188.18,188.14,0.03870284]
[1739739746310,3.07,188.17,188.14,0.03870284]
[1739739747612,5.314,188.16,188.14,0.03870284]
[1739739748307,3.07,188.17,188.14,0.03870284]
[1739739748612,12.34078388,188.15,188.02,3.2634]
[1739739748914,12.34078388,188.15,188.03,2.60315228]
[1739739749214,12.34078388,188.15,188.04,0.97645228]
[1739739749406,5.3149,188.13,188.07,5.3163]
[1739739749810,0.03818727,188.12,188.08,0.03694859]
[1739739751415,5.35318727,188.12,188.08,0.03694859]
[1739739752017,0.03818727,188.12,188.08,5.35294859]
[1739739754417,0.03818727,188.12,188.08,0.03694859]
[1739739756318,0.03818727,188.12,188.1,5.3154]
[1739739756913,0.03818727,188.12,188.09,5.3157]
[1739739757121,0.03818727,188.12,188.08,0.03694859]
[1739739757318,3.07,188.17,188.08,0.03694859]
[1739739757817,3.07,188.17,188.1,12.34078388]
[1739739758016,3.07,188.17,188.11,3.2516]
[1739739758519,0.03679491,188.16,188.12,0.0365918]
[1739739760319,0.03679491,188.16,188.14,5.3143]
[1739739761222,0.03679491,188.16,188.15,5.3141]
[1739739768814,0.03679491,188.16,188.13,7.90532345]
[1739739769019,7.94211836,188.16,188.12,0.0365918]
[1739739769727,5.3143,188.15,188.12,0.0365918]
[1739739770217,5.3147,188.13,188.12,0.0365918]
[1739739770615,17.67979351,188.13,188.12,0.0365918]
[1739739772826,20.74979351,188.13,188.12,0.0365918]
[1739739773322,8.3847,188.13,188.12,0.0365918]
[1739739775122,8.3847,188.13,188.05,5.3169]
[1739739775123,15.43509351,188.13,188.05,5.3169]
[1739739775320,5.3155,188.11,188.05,5.3169]
[1739739775522,15.43509351,188.13,188.05,5.3169]
[1739739776333,0.03815107,188.11,188.07,0.03342464]
[1739739777932,5.3156,188.1,188.07,0.03342464]
[1739739780226,0.03815107,188.11,188.07,0.03342464]
[1739739780536,0.03815107,188.11,188.07,5.34972464]
[1739739780722,0.03815107,188.11,188.07,0.03342464]
[1739739781530,5.35335107,188.11,188.07,5.34972464]
[1739739781731,0.03815107,188.11,188.07,0.03342464]
[1739739782830,5.3161,188.09,188.07,0.03342464]
[1739739783641,5.3155,188.1,188.07,0.03342464]
[1739739783936,0.03815107,188.11,188.07,0.03342464]
[1739739784235,5.3155,188.1,188.07,0.03342464]
[1739739785036,0.03815107,188.11,188.07,0.03342464]
[1739739785932,5.35345107,188.11,188.07,0.03342464]
[1739739786231,0.03815107,188.11,188.07,0.03342464]
[1739739786535,0.03815107,188.11,188.08,5.3161]
[1739739786836,5.35345107,188.11,188.07,5.34962464]
[1739739787535,0.03815107,188.11,188.08,5.3159]
[1739739788245,5.35345107,188.11,188.08,5.3159]
[1739739788538,0.03815107,188.11,188.08,5.3159]
[1739739789642,0.03815107,188.11,188.07,0.03342464]
[1739739790142,0.03815107,188.11,188.1,5.3155]
[1739739790840,3.10815107,188.11,188.1,5.3155]
[1739739799545,11.01805546,188.11,188.07,0.03342464]
[1739739799743,7.90990439,188.09,188.07,0.03342464]
[1739739800839,5.3161,188.08,188.07,0.03342464]
[1739739801245,7.90990439,188.09,188.07,0.03342464]
[1739739802151,13.22570439,188.09,188.07,0.03342464]
[1739739802340,7.90990439,188.09,188.07,0.03342464]
[1739739803348,5.3161,188.08,188.07,0.03342464]
[1739739804050,5.3172,188.05,187.98,1.6215]
[1739739804341,7.90990439,188.04,187.98,1.6215]
[1739739804544,3.301,188.1,187.94,1.6736]
[1739739804545,7.90990439,188.02,187.95,7.90990439]
[1739739804748,13.22770439,188.02,187.95,7.90990439]
[1739739805141,0.03977737,188.0,187.97,0.03470309]
[1739739806544,0.03977737,188.0,187.97,5.35390309]
[1739739806746,0.03977737,188.0,187.97,0.03470309]
[1739739807144,0.03977737,188.0,187.98,5.3187]
[1739739808242,0.03977737,188.0,187.97,0.03470309]
[1739739808450,0.03977737,188.0,187.99,5.3186]
[1739739812959,7.90990439,188.06,187.99,7.90990439]
[1739739813150,7.90990439,188.06,188.05,5.3169]
[1739739813354,7.90990439,188.08,188.05,5.3169]
[1739739814055,7.90990439,188.08,188.01,7.90990439]
[1739739814360,0.03481712,188.08,188.05,0.0357236]
[1739739814550,0.03481712,188.08,188.07,5.3163]
[1739739815353,0.03481712,188.08,188.07,13.22620439]
[1739739816054,7.90990439,188.14,188.07,7.90990439]
[1739739816755,7.90990439,188.14,188.1,5.3153]
[1739739817150,7.94988918,188.14,188.1,5.34979234]
[1739739819759,7.90990439,188.12,188.1,0.03449234]
[1739739820961,13.22510439,188.12,188.1,0.03449234]
[1739739821557,3.07,188.11,188.1,0.03449234]
[1739739823359,8.3852,188.11,188.1,0.03449234]
[1739739828462,3.07,188.11,188.1,0.03449234]
[1739739830568,3.07,188.11,188.1,5.34999234]
[1739739831261,3.07,188.11,188.1,0.03449234]
[1739739832468,3.07,188.11,188.1,5.34999234]
[1739739833773,3.07,188.11,188.1,0.03449234]
[1739739834367,3.07,188.11,188.1,5.34999234]
[1739739835068,3.07,188.11,188.1,13.25989673]
[1739739835368,0.4945,188.11,188.1,13.25989673]
[1739739835563,0.03998479,188.14,188.13,5.3147]
[1739739839674,0.03998479,188.14,188.11,6.9304]
[1739739839975,0.03998479,188.14,188.1,0.03449234]
[1739739841075,0.03998479,188.14,188.11,5.3152]
[1739739841676,0.03998479,188.14,188.1,0.03449234]
[1739739841872,0.03998479,188.14,188.12,5.3149]
[1739739842378,0.03998479,188.14,188.13,5.3147]
[1739739844076,0.03998479,188.14,188.1,7.94439673]
[1739739844476,0.03998479,188.14,188.1,0.03449234]
[1739739845280,0.03998479,188.14,188.12,5.3147]
[1739739845881,0.03998479,188.14,188.1,7.94439673]
[1739739846071,0.03998479,188.14,188.13,5.3147]
[1739739848290,7.90990439,188.2,188.12,7.90990439]
[1739739848583,7.90990439,188.2,188.18,5.3132]
[1739739849282,7.90990439,188.2,188.14,7.90990439]
[1739739849582,7.90990439,188.2,188.17,5.34801111]
[1739739849983,0.03833031,188.21,188.18,5.313]
[1739739853284,0.03833031,188.21,188.2,5.3127]
[1739739855489,0.03833031,188.21,188.19,5.3129]
[1739739857083,0.03833031,188.21,188.17,5.34791111]
[1739739857288,7.90990439,188.2,188.17,0.03461111]
[1739739857489,7.90990439,188.18,188.17,0.03461111]
[1739739858888,7.90990439,188.2,188.17,5.34811111]
[1739739859095,0.03833031,188.21,188.17,0.03461111]
[1739739859990,0.03833031,188.21,188.18,7.90990439]
[1739739861295,0.03833031,188.21,188.17,0.03461111]
[1739739861494,5.35073031,188.21,188.17,0.03461111]
[1739739862596,0.03833031,188.21,188.17,5.34811111]
[1739739863798,0.03833031,188.21,188.18,5.3132]
[1739739863991,0.03833031,188.21,188.17,0.03461111]
[1739739864996,0.03833031,188.21,188.18,7.90990439]
[1739739865186,7.90990439,188.28,188.22,5.3119]
[1739739865788,7.90990439,188.28,188.24,5.3115]
[1739739866395,7.94936125,188.28,188.25,5.3112]
[1739739866796,7.94936125,188.28,188.24,0.04028715]
[1739739867592,7.94936125,188.28,188.25,5.3113]
[1739739867893,0.03945686,188.28,188.24,7.95019154]
[1739739868398,0.03945686,188.28,188.27,5.3107]
[1739739870902,0.03945686,188.28,188.26,7.90990439]
[1739739871503,0.03945686,188.28,188.26,13.22080439]
[1739739871802,0.03945686,188.28,188.26,7.90990439]
[1739739872396,0.03945686,188.28,188.27,5.3107]
[1739739873603,13.21810439,188.36,188.31,5.3095]
[1739739873992,7.90990439,188.36,188.31,5.3095]
[1739739874396,5.3079,188.37,188.32,5.3092]
[1739739874698,7.90990439,188.38,188.32,5.3092]
[1739739874899,0.03500958,188.36,188.33,0.04000324]
[1739739876504,0.03500958,188.36,188.33,5.34900324]
[1739739877004,0.03500958,188.36,188.33,0.04000324]
[1739739880195,0.03500958,188.36,188.35,5.3085]
[1739739880599,1.593,188.44,188.33,4.81700324]
[1739739880802,5.3062,188.44,188.39,5.3073]
[1739739881006,5.3062,188.44,188.33,4.81700324]
[1739739881007,15.60750339,188.47,188.35,12.32850339]
[1739739881402,1.5727,188.49,188.35,12.32850339]
[1739739881707,1.5727,188.49,188.38,12.32850339]
[1739739882008,0.03833339,188.44,188.4,0.03691262]
[1739739883107,0.03833339,188.44,188.42,5.3062]
[1739739884705,0.03833339,188.44,188.41,14.01900339]
[1739739884706,0.03833339,188.44,188.4,0.03691262]
[1739739886010,12.32850339,188.41,188.4,0.03691262]
[1739739886207,12.32850339,188.41,188.31,1.6686]
[1739739886508,12.32850339,188.41,188.31,6.9781]
[1739739886908,5.3078,188.38,188.31,6.9781]
[1739739887309,0.03943817,188.36,188.33,0.03358162]
[1739739888807,5.3085,188.35,188.33,0.03358162]
[1739739890407,5.3087,188.34,188.33,0.03358162]
[1739739890814,0.03943817,188.36,188.33,0.03358162]
[1739739891113,5.34773817,188.36,188.33,0.03358162]
[1739739892512,5.3087,188.35,188.33,0.03358162]
[1739739893912,0.03943817,188.36,188.33,0.03358162]
[1739739893913,5.3087,188.34,188.33,0.03358162]
[1739739900619,13.20295272,188.34,188.33,0.03358162]
[1739739902117,5.3085,188.35,188.33,0.03358162]
[1739739902315,7.93369089,188.36,188.33,0.03358162]
[1739739903317,13.20295272,188.34,188.33,0.03358162]
[1739739904323,13.20295272,188.34,188.33,8.162e-05]
[1739739905220,5.3105,188.28,188.23,7.89425272]
[1739739905616,7.89425272,188.29,188.21,7.89425272]
[1739739905817,7.89425272,188.27,188.21,7.89425272]
[1739739906217,7.89425272,188.27,188.2,54.30306868]
[1739739906521,0.03982622,188.26,188.22,0.03579315]
[1739739906721,7.89425272,188.25,188.22,0.03579315]
[1739739907519,5.3118,188.23,188.22,0.03579315]
[1739739908021,7.89425272,188.25,188.22,0.03579315]
[1739739908417,0.03982622,188.26,188.22,0.03579315]
[1739739909819,0.03982622,188.26,188.25,5.3113]
[1739739910525,2.622e-05,188.26,188.25,5.3113]
[1739739911925,3.2398,188.37,188.31,5.3094]
[1739739913019,0.03504808,188.36,188.32,5.34933868]
[1739739913225,0.03504808,188.36,188.32,0.04013868]
[1739739914419,0.03504808,188.36,188.34,5.3087]
[1739739914620,0.03504808,188.36,188.32,0.04013868]
[1739739914822,0.03504808,188.36,188.33,5.3089]
[1739739915123,0.03504808,188.36,188.32,0.04013868]
[1739739916518,0.03504808,188.36,188.33,5.3088]
[1739739917326,0.03504808,188.36,188.33,5.309]
[1739739917724,0.03504808,188.36,188.32,0.04013868]
[1739739918224,0.03504808,188.36,188.33,5.309]
[1739739918424,0.03504808,188.36,188.32,0.04013868]
[1739739918622,0.03504808,188.36,188.34,5.3087]
[1739739919225,0.03504808,188.36,188.33,5.309]
[1739739919426,0.03504808,188.36,188.32,0.04013868]
[1739739920728,0.03504808,188.36,188.35,5.3085]
[1739739924028,0.03504808,188.36,188.32,0.04013868]
[1739739924836,12.34370865,188.34,188.32,0.04013868]
[1739739925325,17.65250865,188.34,188.32,0.04013868]
[1739739925530,12.34370865,188.34,188.32,0.04013868]
[1739739925932,5.309,188.33,188.32,0.04013868]
[1739739926132,5.309,188.33,188.32,3.868e-05]
[1739739926830,12.34370865,188.34,188.21,1.6917]
[1739739927129,12.34370865,188.29,188.21,1.6917]
[1739739927925,12.34370865,188.29,188.23,0.03562193]
[1739739928130,0.03762933,188.27,188.23,0.03562193]
[1739739932238,0.03762933,188.27,188.23,5.34722193]
[1739739932841,0.03762933,188.27,188.23,0.03562193]
[1739739934043,5.34852933,188.27,188.23,0.03562193]
[1739739934338,0.03762933,188.27,188.23,0.03562193]
[1739739934541,5.34842933,188.27,188.23,0.03562193]
[1739739935442,5.3113,188.26,188.23,0.03562193]
[1739739935641,0.03762933,188.27,188.23,0.03562193]
[1739739936436,0.03762933,188.27,188.24,5.3114]
[1739739937240,0.03762933,188.27,188.23,0.03562193]
[1739739937934,5.311,188.26,188.23,0.03562193]
[1739739939138,0.03762933,188.27,188.23,0.03562193]
[1739739941140,5.311,188.26,188.23,0.03562193]
[1739739943155,0.03762933,188.27,188.23,5.34742193]
[1739739943448,0.03762933,188.27,188.23,0.03562193]
[1739739946144,0.03762933,188.27,188.26,5.311]
[1739739946649,0.03762933,188.27,188.23,0.03562193]
[1739739947151,0.03762933,188.27,188.24,5.3115]
[1739739948349,0.03762933,188.27,188.23,0.03562193]
[1739739948942,0.03762933,188.27,188.26,5.311]
[1739739950248,0.03762933,188.27,188.23,0.03562193]
[1739739950544,0.03762933,188.27,188.24,5.3113]
[1739739950749,0.03762933,188.27,188.23,0.03562193]
[1739739950950,0.03762933,188.27,188.24,5.3115]
[1739739951550,0.03762933,188.27,188.25,5.3112]
[1739739952961,7.89725584,188.26,188.23,0.03562193]
[1739739954460,7.89725584,188.24,188.23,0.03562193]
[1739739954660,5.3116,188.24,188.23,0.03562193]
[1739739955154,12.34904805,188.26,188.13,12.34904805]
[1739739955354,12.34904805,188.23,188.11,1.6479]
[1739739955758,5.3136,188.17,188.11,1.6479]
[1739739956158,5.3136,188.17,188.09,5.3156]
[1739739956462,0.04004942,188.15,188.12,5.3149]
[1739739956656,0.04004942,188.15,188.11,0.03677193]
[1739739959366,0.04004942,188.15,188.14,5.3144]
[1739739970770,0.04004942,188.15,188.12,5.3147]
[1739739971471,0.04004942,188.15,188.14,5.3144]
[1739739975975,4.942e-05,188.15,188.14,5.3144]
[1739739976278,194.0,188.25,188.21,5.3123]
[1739739976477,5.3104,188.28,188.17,12.34904805]
[1739739976670,13.20937262,188.28,188.21,7.89897262]
[1739739976975,13.20937262,188.28,188.22,5.3121]
[1739739977474,0.03848242,188.27,188.23,0.03547086]
[1739739978874,0.03848242,188.27,188.24,5.3115]
[1739739980576,0.03848242,188.27,188.23,7.93444348]
[1739739980779,0.03848242,188.27,188.25,5.311]
[1739739981177,0.03848242,188.27,188.23,7.93444348]
[1739739981379,0.03848242,188.27,188.23,0.03547086]
[1739739981680,0.03848242,188.27,188.23,5.34707086]